[Event "Titled Tuesday Blitz February 22 Late 2022"]
[White "Mangialardo, Tiago Carvalho"]
[Black "Glavina, Pablo"]
[WhiteFideId "2130718"]
[BlackFideId "100234"]
[WhiteElo "2114"]
[BlackElo "2369"]
[Result "0-1"]
[Round "02"]
[TimeControl "180+1"]
[Date "2022.02.23"]
[WhiteClock "0:00:03"]
[BlackClock "0:00:37"]

1. Nf3 {[%clk 0:03:00]}  Nf6 {[%clk 0:02:57]} 2. d4 {[%clk 0:02:56]}  c5 {[%clk 0:02:56]} 3. c4 {[%clk 0:02:52]}  cxd4 {[%clk 0:02:53]} 4. Qxd4 {[%clk 0:02:48]}  g6 {[%clk 0:02:51]} 5. Nc3 {[%clk 0:02:47]}  Bg7 {[%clk 0:02:51]} 6. Qd1 {[%clk 0:02:47]}  O-O {[%clk 0:02:50]} 7. Bf4 {[%clk 0:02:45]}  b6 {[%clk 0:02:46]} 8. e3 {[%clk 0:02:42]}  Bb7 {[%clk 0:02:46]} 9. Be2 {[%clk 0:02:42]}  Ne4 {[%clk 0:02:45]} 10. Nxe4 {[%clk 0:02:10]}  Bxe4 {[%clk 0:02:44]} 11. Qd2 {[%clk 0:02:02]}  Na6 {[%clk 0:02:35]} 12. O-O {[%clk 0:01:55]}  Nc5 {[%clk 0:02:33]} 13. Be5 {[%clk 0:01:53]}  Bxf3 {[%clk 0:02:27]} 14. Bxf3 {[%clk 0:01:03]}  Bxe5 {[%clk 0:02:24]} 15. Bxa8 {[%clk 0:01:03]}  Qxa8 {[%clk 0:02:24]} 16. Rab1 {[%clk 0:01:02]}  d6 {[%clk 0:02:23]} 17. Rfd1 {[%clk 0:00:31]}  Bg7 {[%clk 0:02:19]} 18. h4 {[%clk 0:00:26]}  h5 {[%clk 0:02:18]} 19. f3 {[%clk 0:00:19]}  Rc8 {[%clk 0:02:15]} 20. b3 {[%clk 0:00:18]}  Ne6 {[%clk 0:02:14]} 21. Rbc1 {[%clk 0:00:16]}  Bf6 {[%clk 0:02:13]} 22. Qf2 {[%clk 0:00:05]}  Ng7 {[%clk 0:02:08]} 23. g3 {[%clk 0:00:05]}  a5 {[%clk 0:02:05]} 24. e4 {[%clk 0:00:05]}  Qc6 {[%clk 0:02:04]} 25. Qd2 {[%clk 0:00:05]}  Ne6 {[%clk 0:02:01]} 26. Qd5 {[%clk 0:00:05]}  Qxd5 {[%clk 0:01:59]} 27. Rxd5 {[%clk 0:00:06]}  Nd4 {[%clk 0:01:58]} 28. Kf2 {[%clk 0:00:04]}  Rc6 {[%clk 0:01:55]} 29. Ke3 {[%clk 0:00:04]}  e5 {[%clk 0:01:44]} 30. f4 {[%clk 0:00:03]}  Kf8 {[%clk 0:01:42]} 31. fxe5 {[%clk 0:00:03]}  dxe5 {[%clk 0:01:41]} 32. Rf1 {[%clk 0:00:03]}  Ke7 {[%clk 0:01:40]} 33. a3 {[%clk 0:00:01]}  Bg7 {[%clk 0:01:37]} 34. Rb1 {[%clk 0:00:02]}  Bh6+ {[%clk 0:01:36]} 35. Kd3 {[%clk 0:00:02]}  f6 {[%clk 0:01:35]} 36. Kc3 {[%clk 0:00:02]}  Ke6 {[%clk 0:01:30]} 37. b4 {[%clk 0:00:02]}  axb4+ {[%clk 0:01:29]} 38. axb4 {[%clk 0:00:03]}  f5 {[%clk 0:01:17]} 39. Kd3 {[%clk 0:00:03]}  f4 {[%clk 0:01:16]} 40. gxf4 {[%clk 0:00:03]}  Bxf4 {[%clk 0:01:15]} 41. Rg1 {[%clk 0:00:04]}  g5 {[%clk 0:01:13]} 42. c5 {[%clk 0:00:04]}  g4 {[%clk 0:01:10]} 43. cxb6 {[%clk 0:00:03]}  Rxb6 {[%clk 0:01:09]} 44. Kc4 {[%clk 0:00:04]}  g3 {[%clk 0:01:07]} 45. Kc5 {[%clk 0:00:04]}  Rb5+ {[%clk 0:01:06]} 46. Kc4 {[%clk 0:00:04]}  Rb8 {[%clk 0:01:01]} 47. b5 {[%clk 0:00:04]}  Nf3 {[%clk 0:00:54]} 48. Rg2 {[%clk 0:00:04]}  Nxh4 {[%clk 0:00:53]} 49. Rg1 {[%clk 0:00:04]}  Nf3 {[%clk 0:00:52]} 50. Rg2 {[%clk 0:00:03]}  h4 {[%clk 0:00:52]} 51. Kc5 {[%clk 0:00:04]}  Rc8+ {[%clk 0:00:48]} 52. Kb6 {[%clk 0:00:03]}  h3 {[%clk 0:00:48]} 53. Ra2 {[%clk 0:00:03]}  g2 {[%clk 0:00:46]} 54. Ra6 {[%clk 0:00:01]}  Re8 {[%clk 0:00:37]} 55. Kb7+ {[%clk 0:00:02]}  Kf7 {[%clk 0:00:37]} 56. Rd7+ {[%clk 0:00:03]}  Re7 {[%clk 0:00:37]} 0-1


[Site "https://www.chess.com"]

[Event "Titled Tuesday Blitz February 22 Late 2022"]
[White "Martinez Alcantara, Jose Eduardo"]
[Black "Hambleton, Aman"]
[WhiteFideId "3805662"]
[BlackFideId "2606577"]
[WhiteElo "2690"]
[BlackElo "2552"]
[Result "1-0"]
[Round "02"]
[TimeControl "180+1"]
[Date "2022.02.22"]
[WhiteClock "0:00:40"]
[BlackClock "0:00:01"]

1. e4 {[%clk 0:03:00]}  c5 {[%clk 0:02:58]} 2. Nf3 {[%clk 0:03:01]}  e6 {[%clk 0:02:58]} 3. c3 {[%clk 0:03:01]}  Nf6 {[%clk 0:02:58]} 4. Bd3 {[%clk 0:03:01]}  c4 {[%clk 0:02:48]} 5. Bxc4 {[%clk 0:03:01]}  Nxe4 {[%clk 0:02:48]} 6. d3 {[%clk 0:03:01]}  Nf6 {[%clk 0:02:43]} 7. d4 {[%clk 0:03:02]}  b6 {[%clk 0:02:43]} 8. Bf4 {[%clk 0:03:00]}  Bb7 {[%clk 0:02:43]} 9. Nbd2 {[%clk 0:03:00]}  Be7 {[%clk 0:02:42]} 10. Qe2 {[%clk 0:03:00]}  d6 {[%clk 0:02:38]} 11. O-O {[%clk 0:02:57]}  O-O {[%clk 0:02:35]} 12. a4 {[%clk 0:02:57]}  Nbd7 {[%clk 0:02:14]} 13. h3 {[%clk 0:02:53]}  Re8 {[%clk 0:02:05]} 14. Rfe1 {[%clk 0:02:51]}  Bf8 {[%clk 0:02:02]} 15. Bd3 {[%clk 0:02:51]}  a6 {[%clk 0:01:51]} 16. Bh2 {[%clk 0:02:50]}  Qc7 {[%clk 0:01:51]} 17. Ng5 {[%clk 0:02:45]}  h6 {[%clk 0:01:42]} 18. Nge4 {[%clk 0:02:45]}  Red8 {[%clk 0:01:15]} 19. Rac1 {[%clk 0:02:24]}  Be7 {[%clk 0:01:01]} 20. Bb1 {[%clk 0:01:57]}  Nxe4 {[%clk 0:00:57]} 21. Nxe4 {[%clk 0:01:57]}  Nf6 {[%clk 0:00:58]} 22. Nxf6+ {[%clk 0:01:50]}  Bxf6 {[%clk 0:00:58]} 23. Qd3 {[%clk 0:01:38]}  g6 {[%clk 0:00:58]} 24. Bf4 {[%clk 0:01:33]}  Bg7 {[%clk 0:00:48]} 25. Qg3 {[%clk 0:01:32]}  b5 {[%clk 0:00:33]} 26. h4 {[%clk 0:01:27]}  bxa4 {[%clk 0:00:24]} 27. Qe3 {[%clk 0:00:58]}  h5 {[%clk 0:00:17]} 28. Qg3 {[%clk 0:00:52]}  a3 {[%clk 0:00:12]} 29. bxa3 {[%clk 0:00:52]}  Rab8 {[%clk 0:00:13]} 30. c4 {[%clk 0:00:47]}  Bxd4 {[%clk 0:00:07]} 31. Bxg6 {[%clk 0:00:48]}  fxg6 {[%clk 0:00:06]} 32. Rxe6 {[%clk 0:00:48]}  Rd7 {[%clk 0:00:02]} 33. Rxd6 {[%clk 0:00:41]}  Qc5 {[%clk 0:00:01]} 34. Rxd7 {[%clk 0:00:40]} 1-0


[Site "https://www.chess.com"]

[Event "Titled Tuesday Blitz February 22 Late 2022"]
[White "Medeiros Jr, Francisco De Assis"]
[Black "Villegas, Pierre"]
[WhiteFideId "2114267"]
[BlackFideId "654183"]
[WhiteElo "1998"]
[BlackElo "2410"]
[Result "1-0"]
[Round "02"]
[TimeControl "180+1"]
[Date "2022.02.23"]
[WhiteClock "0:00:10"]
[BlackClock "0:00:02"]

1. d4 {[%clk 0:02:55]}  d5 {[%clk 0:02:59]} 2. Nf3 {[%clk 0:02:55]}  Nf6 {[%clk 0:02:58]} 3. Bg5 {[%clk 0:02:55]}  Ne4 {[%clk 0:02:57]} 4. Bf4 {[%clk 0:02:56]}  c5 {[%clk 0:02:53]} 5. c3 {[%clk 0:02:55]}  Nc6 {[%clk 0:02:53]} 6. e3 {[%clk 0:02:53]}  Bf5 {[%clk 0:02:47]} 7. Nbd2 {[%clk 0:02:50]}  e6 {[%clk 0:02:47]} 8. Nxe4 {[%clk 0:02:39]}  Bxe4 {[%clk 0:02:46]} 9. Bd3 {[%clk 0:02:40]}  Bxd3 {[%clk 0:02:39]} 10. Qxd3 {[%clk 0:02:40]}  Qb6 {[%clk 0:02:26]} 11. Rb1 {[%clk 0:02:38]}  Be7 {[%clk 0:02:25]} 12. O-O {[%clk 0:02:25]}  O-O {[%clk 0:02:24]} 13. dxc5 {[%clk 0:02:16]}  Qxc5 {[%clk 0:02:15]} 14. b4 {[%clk 0:02:16]}  Qb6 {[%clk 0:02:14]} 15. Rfc1 {[%clk 0:02:12]}  Rfd8 {[%clk 0:02:10]} 16. a4 {[%clk 0:02:04]}  Rdc8 {[%clk 0:01:30]} 17. a5 {[%clk 0:01:50]}  Qd8 {[%clk 0:01:30]} 18. h3 {[%clk 0:01:47]}  f6 {[%clk 0:01:24]} 19. e4 {[%clk 0:01:45]}  e5 {[%clk 0:01:03]} 20. Be3 {[%clk 0:01:44]}  dxe4 {[%clk 0:00:55]} 21. Qxe4 {[%clk 0:01:45]}  Qd7 {[%clk 0:00:46]} 22. Rd1 {[%clk 0:01:43]}  Qe6 {[%clk 0:00:46]} 23. a6 {[%clk 0:01:15]}  b6 {[%clk 0:00:38]} 24. Rd3 {[%clk 0:01:12]}  Rd8 {[%clk 0:00:27]} 25. Rbd1 {[%clk 0:01:06]}  f5 {[%clk 0:00:23]} 26. Rxd8+ {[%clk 0:01:04]}  Rxd8 {[%clk 0:00:24]} 27. Rxd8+ {[%clk 0:01:01]}  Bxd8 {[%clk 0:00:25]} 28. Qc2 {[%clk 0:00:41]}  Bf6 {[%clk 0:00:24]} 29. Bg5 {[%clk 0:00:39]}  e4 {[%clk 0:00:21]} 30. b5 {[%clk 0:00:27]}  Na5 {[%clk 0:00:08]} 31. Nd4 {[%clk 0:00:23]}  Bxd4 {[%clk 0:00:03]} 32. cxd4 {[%clk 0:00:24]}  Qc4 {[%clk 0:00:03]} 33. Qb1 {[%clk 0:00:18]}  Nb3 {[%clk 0:00:02]} 34. Be3 {[%clk 0:00:15]}  g6 {[%clk 0:00:01]} 35. Qa2 {[%clk 0:00:13]}  Kf7 {[%clk 0:00:01]} 36. Bg5 {[%clk 0:00:09]}  Ke6 {[%clk 0:00:02]} 37. Kh2 {[%clk 0:00:09]}  Qxb5 {[%clk 0:00:02]} 38. Qc2 {[%clk 0:00:07]}  Kd6 {[%clk 0:00:01]} 39. Qc8 {[%clk 0:00:07]}  Qc6 {[%clk 0:00:01]} 40. Qf8+ {[%clk 0:00:07]}  Kd5 {[%clk 0:00:01]} 41. Qf7+ {[%clk 0:00:07]}  Kxd4 {[%clk 0:00:01]} 42. Qxa7 {[%clk 0:00:07]}  Qc5 {[%clk 0:00:01]} 43. Be3+ {[%clk 0:00:07]}  Kc3 {[%clk 0:00:01]} 44. Bxc5 {[%clk 0:00:07]}  Nxc5 {[%clk 0:00:01]} 45. Qb7 {[%clk 0:00:08]}  Nxb7 {[%clk 0:00:01]} 46. axb7 {[%clk 0:00:09]}  b5 {[%clk 0:00:02]} 47. b8=Q {[%clk 0:00:10]} 1-0


[Site "https://www.chess.com"]

[Event "Titled Tuesday Blitz February 22 Late 2022"]
[White "Melian, Juan Sebastian"]
[Black "Fikh, Anthony"]
[WhiteFideId "3706575"]
[BlackFideId "3224562"]
[WhiteElo "1842"]
[BlackElo "1931"]
[Result "1-0"]
[Round "02"]
[TimeControl "180+1"]
[Date "2022.02.23"]
[WhiteClock "0:00:05"]
[BlackClock "0:00:07"]

1. e4 {[%clk 0:02:58]}  c6 {[%clk 0:02:56]} 2. d4 {[%clk 0:02:58]}  d5 {[%clk 0:02:57]} 3. exd5 {[%clk 0:02:58]}  cxd5 {[%clk 0:02:56]} 4. Bd3 {[%clk 0:02:58]}  Nc6 {[%clk 0:02:56]} 5. c3 {[%clk 0:02:59]}  Qc7 {[%clk 0:02:56]} 6. Ne2 {[%clk 0:02:55]}  Bg4 {[%clk 0:02:55]} 7. O-O {[%clk 0:02:54]}  e6 {[%clk 0:02:55]} 8. Qe1 {[%clk 0:02:38]}  Nf6 {[%clk 0:02:40]} 9. f3 {[%clk 0:02:34]}  Bh5 {[%clk 0:02:40]} 10. Qh4 {[%clk 0:02:34]}  Rg8 {[%clk 0:02:37]} 11. Bg5 {[%clk 0:02:11]}  Bg6 {[%clk 0:02:32]} 12. Nf4 {[%clk 0:02:05]}  Be7 {[%clk 0:02:28]} 13. Nxg6 {[%clk 0:01:59]}  hxg6 {[%clk 0:02:27]} 14. Nd2 {[%clk 0:01:55]}  O-O-O {[%clk 0:02:19]} 15. Bf4 {[%clk 0:01:30]}  Bd6 {[%clk 0:02:16]} 16. Bxd6 {[%clk 0:01:30]}  Qxd6 {[%clk 0:02:17]} 17. Qg3 {[%clk 0:01:26]}  Qxg3 {[%clk 0:02:16]} 18. hxg3 {[%clk 0:01:26]}  Nh5 {[%clk 0:02:10]} 19. Kf2 {[%clk 0:01:25]}  Kb8 {[%clk 0:01:56]} 20. Rfe1 {[%clk 0:01:08]}  Rge8 {[%clk 0:01:26]} 21. f4 {[%clk 0:01:09]}  Nf6 {[%clk 0:01:25]} 22. Kf3 {[%clk 0:01:02]}  Rh8 {[%clk 0:01:22]} 23. Rh1 {[%clk 0:01:01]}  Kc7 {[%clk 0:01:20]} 24. g4 {[%clk 0:01:01]}  Ne7 {[%clk 0:01:11]} 25. g5 {[%clk 0:00:55]}  Nd7 {[%clk 0:01:09]} 26. g4 {[%clk 0:00:55]}  Kd6 {[%clk 0:01:01]} 27. Kg3 {[%clk 0:00:51]}  f6 {[%clk 0:00:38]} 28. Nf3 {[%clk 0:00:30]}  f5 {[%clk 0:00:28]} 29. Rae1 {[%clk 0:00:19]}  Rde8 {[%clk 0:00:20]} 30. Ne5 {[%clk 0:00:19]}  Nxe5 {[%clk 0:00:20]} 31. fxe5+ {[%clk 0:00:16]}  Kd7 {[%clk 0:00:20]} 32. Bb5+ {[%clk 0:00:15]}  Nc6 {[%clk 0:00:20]} 33. gxf5 {[%clk 0:00:14]}  gxf5 {[%clk 0:00:19]} 34. Bxc6+ {[%clk 0:00:14]}  bxc6 {[%clk 0:00:19]} 35. g6 {[%clk 0:00:13]}  Rh6 {[%clk 0:00:15]} 36. Rxh6 {[%clk 0:00:13]}  gxh6 {[%clk 0:00:16]} 37. Kh4 {[%clk 0:00:11]}  Ke7 {[%clk 0:00:10]} 38. Kh5 {[%clk 0:00:08]}  Rh8 {[%clk 0:00:09]} 39. g7 {[%clk 0:00:08]}  Rg8 {[%clk 0:00:10]} 40. Kg6 {[%clk 0:00:05]}  h5 {[%clk 0:00:09]} 41. Rh1 {[%clk 0:00:05]}  Ke8 {[%clk 0:00:08]} 42. Rxh5 {[%clk 0:00:05]}  f4 {[%clk 0:00:07]} 43. Rh8 {[%clk 0:00:05]} 1-0


[Site "https://www.chess.com"]

[Event "Titled Tuesday Blitz February 22 Late 2022"]
[White "Papasimakopoulos, Alexandros"]
[Black "Baches Garcia, Guillermo"]
[WhiteFideId "4244125"]
[BlackFideId "2209764"]
[WhiteElo "2340"]
[BlackElo "2405"]
[Result "1-0"]
[Round "02"]
[TimeControl "180+1"]
[Date "2022.02.23"]
[WhiteClock "0:01:11"]
[BlackClock "0:00:02"]

1. d4 {[%clk 0:03:00]}  Nf6 {[%clk 0:03:00]} 2. c4 {[%clk 0:03:01]}  e6 {[%clk 0:03:00]} 3. Nc3 {[%clk 0:03:01]}  Bb4 {[%clk 0:03:00]} 4. Qc2 {[%clk 0:03:02]}  O-O {[%clk 0:03:00]} 5. a3 {[%clk 0:03:02]}  Bxc3+ {[%clk 0:03:00]} 6. Qxc3 {[%clk 0:03:03]}  b6 {[%clk 0:02:56]} 7. Bg5 {[%clk 0:03:01]}  Bb7 {[%clk 0:02:55]} 8. f3 {[%clk 0:03:01]}  d5 {[%clk 0:02:52]} 9. e3 {[%clk 0:03:01]}  Nbd7 {[%clk 0:02:50]} 10. cxd5 {[%clk 0:03:01]}  exd5 {[%clk 0:02:48]} 11. Bd3 {[%clk 0:03:02]}  Re8 {[%clk 0:02:44]} 12. Ne2 {[%clk 0:03:00]}  h6 {[%clk 0:02:40]} 13. Bh4 {[%clk 0:03:00]}  c5 {[%clk 0:02:33]} 14. O-O {[%clk 0:02:58]}  Rc8 {[%clk 0:02:26]} 15. Qd2 {[%clk 0:02:58]}  Qe7 {[%clk 0:02:18]} 16. Bf2 {[%clk 0:02:58]}  c4 {[%clk 0:02:13]} 17. Bc2 {[%clk 0:02:58]}  b5 {[%clk 0:02:13]} 18. Ng3 {[%clk 0:02:58]}  g6 {[%clk 0:02:08]} 19. Rae1 {[%clk 0:02:53]}  h5 {[%clk 0:02:05]} 20. e4 {[%clk 0:02:44]}  h4 {[%clk 0:01:57]} 21. exd5 {[%clk 0:02:34]}  Qd6 {[%clk 0:01:49]} 22. Ne4 {[%clk 0:02:33]}  Qxd5 {[%clk 0:01:45]} 23. Bxh4 {[%clk 0:02:32]}  Nh5 {[%clk 0:01:34]} 24. Qh6 {[%clk 0:02:25]}  Qxd4+ {[%clk 0:01:30]} 25. Kh1 {[%clk 0:02:15]}  Bxe4 {[%clk 0:01:15]} 26. Bxe4 {[%clk 0:02:13]}  Qg7 {[%clk 0:01:08]} 27. Qd2 {[%clk 0:02:09]}  Nhf6 {[%clk 0:01:03]} 28. Bc2 {[%clk 0:02:01]}  Ne5 {[%clk 0:00:48]} 29. Qd6 {[%clk 0:01:48]}  Nh5 {[%clk 0:00:42]} 30. f4 {[%clk 0:01:41]}  Nd3 {[%clk 0:00:35]} 31. Bxd3 {[%clk 0:01:30]}  cxd3 {[%clk 0:00:34]} 32. Qd7 {[%clk 0:01:28]}  Rf8 {[%clk 0:00:07]} 33. Qxd3 {[%clk 0:01:27]}  Qxb2 {[%clk 0:00:07]} 34. f5 {[%clk 0:01:28]}  Qc2 {[%clk 0:00:07]} 35. Qxb5 {[%clk 0:01:23]}  Rc4 {[%clk 0:00:03]} 36. Be7 {[%clk 0:01:12]}  Rh4 {[%clk 0:00:02]} 37. Bxh4 {[%clk 0:01:11]} 1-0


[Site "https://www.chess.com"]

[Event "Titled Tuesday Blitz February 22 Late 2022"]
[White "Papp, Levente"]
[Black "Kirillov, Dmitry"]
[WhiteFideId "751243"]
[BlackFideId "34180572"]
[WhiteElo "2308"]
[BlackElo "2076"]
[Result "1-0"]
[Round "02"]
[TimeControl "180+1"]
[Date "2022.02.23"]
[WhiteClock "0:00:31"]
[BlackClock "0:00:11"]

1. c4 {[%clk 0:03:00]}  e5 {[%clk 0:02:59]} 2. g3 {[%clk 0:02:58]}  c6 {[%clk 0:02:59]} 3. Nf3 {[%clk 0:02:57]}  e4 {[%clk 0:02:59]} 4. Nd4 {[%clk 0:02:57]}  d5 {[%clk 0:03:00]} 5. cxd5 {[%clk 0:02:57]}  Qxd5 {[%clk 0:03:01]} 6. Nc2 {[%clk 0:02:57]}  Nf6 {[%clk 0:02:58]} 7. Nc3 {[%clk 0:02:57]}  Qe5 {[%clk 0:02:58]} 8. Bg2 {[%clk 0:02:56]}  Be7 {[%clk 0:02:58]} 9. O-O {[%clk 0:02:55]}  O-O {[%clk 0:02:56]} 10. Ne3 {[%clk 0:02:53]}  Na6 {[%clk 0:02:36]} 11. b3 {[%clk 0:02:49]}  Nc7 {[%clk 0:02:25]} 12. Bb2 {[%clk 0:02:49]}  Qe6 {[%clk 0:02:12]} 13. Qc2 {[%clk 0:02:47]}  Ncd5 {[%clk 0:01:41]} 14. Nxe4 {[%clk 0:02:41]}  Nxe3 {[%clk 0:01:32]} 15. dxe3 {[%clk 0:02:34]}  Nxe4 {[%clk 0:01:13]} 16. Bxe4 {[%clk 0:02:29]}  g6 {[%clk 0:01:14]} 17. Rad1 {[%clk 0:02:24]}  Bf6 {[%clk 0:01:13]} 18. Bg2 {[%clk 0:02:22]}  Bxb2 {[%clk 0:01:02]} 19. Qxb2 {[%clk 0:02:23]}  Bd7 {[%clk 0:01:02]} 20. Qa3 {[%clk 0:02:13]}  Rfd8 {[%clk 0:00:56]} 21. Rd6 {[%clk 0:02:11]}  Qe8 {[%clk 0:00:45]} 22. Rfd1 {[%clk 0:02:06]}  Be6 {[%clk 0:00:45]} 23. Bf3 {[%clk 0:01:55]}  a6 {[%clk 0:00:40]} 24. h4 {[%clk 0:01:51]}  h5 {[%clk 0:00:40]} 25. Qc5 {[%clk 0:01:49]}  Rxd6 {[%clk 0:00:39]} 26. Qxd6 {[%clk 0:01:48]}  Rc8 {[%clk 0:00:39]} 27. e4 {[%clk 0:01:43]}  Qf8 {[%clk 0:00:38]} 28. e5 {[%clk 0:01:38]}  Qe8 {[%clk 0:00:36]} 29. Kg2 {[%clk 0:01:36]}  Kg7 {[%clk 0:00:36]} 30. Rd2 {[%clk 0:01:24]}  Kg8 {[%clk 0:00:36]} 31. b4 {[%clk 0:01:24]}  Ra8 {[%clk 0:00:36]} 32. Qc7 {[%clk 0:01:13]}  Rb8 {[%clk 0:00:36]} 33. a4 {[%clk 0:01:13]}  Kf8 {[%clk 0:00:33]} 34. a5 {[%clk 0:01:13]}  Qc8 {[%clk 0:00:30]} 35. Qd6+ {[%clk 0:01:11]}  Kg8 {[%clk 0:00:31]} 36. Qc5 {[%clk 0:00:55]}  Qc7 {[%clk 0:00:27]} 37. Rd6 {[%clk 0:00:55]}  Rd8 {[%clk 0:00:27]} 38. Qd4 {[%clk 0:00:53]}  Rd7 {[%clk 0:00:28]} 39. e4 {[%clk 0:00:52]}  Kf8 {[%clk 0:00:27]} 40. Be2 {[%clk 0:00:51]}  Ke7 {[%clk 0:00:27]} 41. Rxd7+ {[%clk 0:00:48]}  Qxd7 {[%clk 0:00:28]} 42. Qxd7+ {[%clk 0:00:42]}  Kxd7 {[%clk 0:00:29]} 43. f4 {[%clk 0:00:41]}  c5 {[%clk 0:00:30]} 44. bxc5 {[%clk 0:00:31]}  Kc6 {[%clk 0:00:30]} 45. f5 {[%clk 0:00:32]}  gxf5 {[%clk 0:00:16]} 46. Bxh5 {[%clk 0:00:31]}  fxe4 {[%clk 0:00:16]} 47. Be2 {[%clk 0:00:31]}  Kxc5 {[%clk 0:00:14]} 48. h5 {[%clk 0:00:29]}  Bf5 {[%clk 0:00:12]} 49. g4 {[%clk 0:00:30]}  Bh7 {[%clk 0:00:12]} 50. Kg3 {[%clk 0:00:31]}  Kd5 {[%clk 0:00:13]} 51. Kf4 {[%clk 0:00:31]}  e3 {[%clk 0:00:11]} 52. g5 {[%clk 0:00:30]}  Kd4 {[%clk 0:00:09]} 53. e6 {[%clk 0:00:30]}  fxe6 {[%clk 0:00:09]} 54. g6 {[%clk 0:00:31]}  Bg8 {[%clk 0:00:09]} 55. h6 {[%clk 0:00:31]}  e5+ {[%clk 0:00:10]} 56. Kg3 {[%clk 0:00:31]}  Kc3 {[%clk 0:00:09]} 57. h7 {[%clk 0:00:30]}  Bxh7 {[%clk 0:00:10]} 58. gxh7 {[%clk 0:00:31]}  Kd2 {[%clk 0:00:11]} 59. Kf3 {[%clk 0:00:31]} 1-0


[Site "https://www.chess.com"]

[Event "Titled Tuesday Blitz February 22 Late 2022"]
[White "Papp, Petra"]
[Black "Sailer, Mike"]
[WhiteFideId "739049"]
[BlackFideId "2012901"]
[WhiteElo "2259"]
[BlackElo "2109"]
[Result "1-0"]
[Round "02"]
[TimeControl "180+1"]
[Date "2022.02.23"]
[WhiteClock "0:00:15"]
[BlackClock "0:00:01"]

1. d4 {[%clk 0:03:00]}  d5 {[%clk 0:02:59]} 2. c4 {[%clk 0:03:00]}  Bf5 {[%clk 0:02:59]} 3. cxd5 {[%clk 0:03:00]}  Bxb1 {[%clk 0:02:59]} 4. Rxb1 {[%clk 0:02:56]}  Qxd5 {[%clk 0:02:59]} 5. b3 {[%clk 0:02:54]}  Nc6 {[%clk 0:02:58]} 6. Nf3 {[%clk 0:02:54]}  e5 {[%clk 0:02:58]} 7. Bb2 {[%clk 0:02:46]}  O-O-O {[%clk 0:02:55]} 8. a3 {[%clk 0:02:42]}  Nxd4 {[%clk 0:02:49]} 9. Nxd4 {[%clk 0:02:41]}  exd4 {[%clk 0:02:49]} 10. Rc1 {[%clk 0:02:37]}  Nf6 {[%clk 0:02:42]} 11. Qc2 {[%clk 0:02:36]}  c6 {[%clk 0:02:24]} 12. b4 {[%clk 0:02:13]}  Bd6 {[%clk 0:01:57]} 13. Qc4 {[%clk 0:02:06]}  Qxc4 {[%clk 0:01:34]} 14. Rxc4 {[%clk 0:02:02]}  Be5 {[%clk 0:01:28]} 15. g3 {[%clk 0:02:00]}  Ng4 {[%clk 0:01:09]} 16. Bh3 {[%clk 0:01:58]}  f5 {[%clk 0:01:02]} 17. O-O {[%clk 0:01:54]}  Rhe8 {[%clk 0:00:57]} 18. b5 {[%clk 0:01:44]}  Re6 {[%clk 0:00:51]} 19. Rfc1 {[%clk 0:01:40]}  Rdd6 {[%clk 0:00:38]} 20. a4 {[%clk 0:01:35]}  Kc7 {[%clk 0:00:17]} 21. Ba3 {[%clk 0:01:31]}  Rd8 {[%clk 0:00:11]} 22. Bg2 {[%clk 0:01:30]}  d3 {[%clk 0:00:07]} 23. exd3 {[%clk 0:01:12]}  Rxd3 {[%clk 0:00:06]} 24. bxc6 {[%clk 0:01:13]}  bxc6 {[%clk 0:00:03]} 25. Bc5 {[%clk 0:01:04]}  Rd2 {[%clk 0:00:02]} 26. Bxa7 {[%clk 0:01:03]}  Bd6 {[%clk 0:00:01]} 27. Rxc6+ {[%clk 0:01:02]}  Kd7 {[%clk 0:00:02]} 28. Rb6 {[%clk 0:00:53]}  Ree2 {[%clk 0:00:03]} 29. Bf3 {[%clk 0:00:30]}  Rxf2 {[%clk 0:00:02]} 30. Rxd6+ {[%clk 0:00:19]}  Kxd6 {[%clk 0:00:01]} 31. Bxf2 {[%clk 0:00:20]}  Nxf2 {[%clk 0:00:01]} 32. Bg2 {[%clk 0:00:15]} 1-0


[Site "https://www.chess.com"]

[Event "Titled Tuesday Blitz February 22 Late 2022"]
[White "Petersson, Kjell"]
[Black "Koutlas, Nikolaos"]
[WhiteFideId "1705148"]
[BlackFideId "25827138"]
[WhiteElo "2009"]
[BlackElo "1610"]
[Result "0-1"]
[Round "02"]
[TimeControl "180+1"]
[Date "2022.02.23"]
[WhiteClock "0:00:08"]
[BlackClock "0:00:54"]

1. d4 {[%clk 0:03:00]}  Nf6 {[%clk 0:02:59]} 2. Bf4 {[%clk 0:03:01]}  g6 {[%clk 0:03:00]} 3. Nc3 {[%clk 0:03:00]}  Bg7 {[%clk 0:03:01]} 4. e4 {[%clk 0:03:00]}  c5 {[%clk 0:03:00]} 5. Nf3 {[%clk 0:02:53]}  cxd4 {[%clk 0:02:59]} 6. Nxd4 {[%clk 0:02:53]}  Nc6 {[%clk 0:02:55]} 7. Nxc6 {[%clk 0:02:29]}  bxc6 {[%clk 0:02:52]} 8. Qd2 {[%clk 0:02:22]}  Qb6 {[%clk 0:02:44]} 9. O-O-O {[%clk 0:02:19]}  Nxe4 {[%clk 0:02:37]} 10. Qd3 {[%clk 0:01:46]}  Nxf2 {[%clk 0:02:27]} 11. Qd2 {[%clk 0:01:19]}  Nxd1 {[%clk 0:02:10]} 12. Nxd1 {[%clk 0:01:18]}  O-O {[%clk 0:02:07]} 13. h4 {[%clk 0:01:18]}  Ba6 {[%clk 0:01:54]} 14. h5 {[%clk 0:01:00]}  Bxf1 {[%clk 0:01:52]} 15. Rxf1 {[%clk 0:00:50]}  Qa6 {[%clk 0:01:49]} 16. Rh1 {[%clk 0:00:37]}  Qxa2 {[%clk 0:01:48]} 17. Qe2 {[%clk 0:00:30]}  e5 {[%clk 0:01:33]} 18. Be3 {[%clk 0:00:22]}  d5 {[%clk 0:01:23]} 19. hxg6 {[%clk 0:00:20]}  fxg6 {[%clk 0:01:21]} 20. Bh6 {[%clk 0:00:18]}  Bxh6+ {[%clk 0:01:17]} 21. Rxh6 {[%clk 0:00:19]}  Rae8 {[%clk 0:01:16]} 22. Qe1 {[%clk 0:00:14]}  Qa1+ {[%clk 0:01:13]} 23. Kd2 {[%clk 0:00:14]}  Qa5+ {[%clk 0:01:14]} 24. c3 {[%clk 0:00:13]}  Qd8 {[%clk 0:01:10]} 25. Qg3 {[%clk 0:00:12]}  Qf6 {[%clk 0:01:06]} 26. Kc2 {[%clk 0:00:09]}  Qf4 {[%clk 0:01:00]} 27. Rxg6+ {[%clk 0:00:08]}  hxg6 {[%clk 0:00:53]} 28. Qxg6+ {[%clk 0:00:08]}  Kh8 {[%clk 0:00:53]} 29. Qh5+ {[%clk 0:00:08]}  Kg7 {[%clk 0:00:54]} 0-1


[Site "https://www.chess.com"]